fUST/lending_fUST_20241201
["ID","MTS","AMOUNT","RATE_DAILY","PERIOD"]
[343905094,1733019055398,-160.0,0.00029208,4]
[343905095,1733019055408,-173.59,0.00029215,7]
[343905096,1733019055417,-187.0,0.000293,2]
[343905097,1733019055426,-600.0,0.00029304,2]
[343905098,1733019055436,-251.54109862,0.00029315,11]
[343905099,1733019055445,-264.86582276,0.00029315,11]
[343905100,1733019055456,-829.63,0.00029315,3]
[343905101,1733019055466,-544.49,0.00029315,3]
[343905102,1733019055476,-641.96,0.00029315,3]
[343905103,1733019055486,-599.0,0.00029315,3]
[343905104,1733019055520,-664.83,0.00029315,3]
[343905105,1733019055537,-951.57,0.00029315,3]
[343905106,1733019055551,-716.35,0.00029315,3]
[343905107,1733019055568,-500.0,0.00029315,3]
[343905108,1733019055584,-917.94,0.00029315,3]
[343905109,1733019055599,-5.99300635,0.00029315,3]
[343905112,1733019700448,179.2108207,0.00013973,2]
[343905180,1733020236227,-1169.27083333,0.0002,2]
[343905181,1733020236237,-172.627842,0.00022228,2]
[343905182,1733020236247,-575.7206764,0.00022292,2]
[343905183,1733020236261,-300.0,0.00022299,2]
[343905184,1733020236270,-300.0,0.00022299,2]
[343905185,1733020236280,-17457.0,0.00022299,2]
[343905186,1733020236289,-403.94872097,0.00022302,2]
[343905187,1733020236298,-21361.0484465,0.00022302,2]
[343905188,1733020236308,-446.9397211,0.00022503,2]
[343905189,1733020236316,-206.95,0.00023494,2]
[343905190,1733020236325,-3725.34113335,0.00023502,2]
[343905191,1733020236334,-159.4916454,0.00023562,2]
[343905192,1733020236348,-882.68417812,0.00023878,2]
[343905193,1733020236358,-184.407531,0.00023892,2]
[343905194,1733020236367,-4826.232624,0.00024,3]
[343905195,1733020236376,-420.0,0.00024224,2]
[343905196,1733020236386,-420.0,0.00024529,2]
[343905197,1733020236395,-500.0,0.00024599,2]
[343905198,1733020236404,-500.0,0.00024599,2]
[343905199,1733020236413,-500.0,0.00024599,2]
[343905200,1733020236421,-500.0,0.00024599,2]
[343905201,1733020236431,-500.0,0.00024599,2]
[343905202,1733020236440,-500.0,0.00024599,2]
[343905203,1733020236450,-500.0,0.00024599,2]
[343905204,1733020236459,-500.0,0.00024599,2]
[343905205,1733020236470,-315.93112853,0.00024599,2]
[343905206,1733020236479,-484.44311919,0.00024599,2]
[343905207,1733020236488,-500.0,0.00024599,2]
[343905208,1733020236497,-18430.57673632,0.000246,2]
[343905209,1733020236506,-217.78712246,0.00024656,2]
[343905210,1733020236515,-500.0,0.00024656,2]
[343905211,1733020236525,-217.47311945,0.00024656,2]
[343905212,1733020236534,-221.9012277,0.00024656,2]
[343905213,1733020236543,-416.22116575,0.00024656,2]
[343905214,1733020236554,-1169.27083333,0.00024657,3]
[343905215,1733020236563,-541.77578094,0.00024657,3]
[343905216,1733020236573,-500.0,0.00024657,3]
[343905217,1733020236583,-500.0,0.00024657,3]
[343905218,1733020236592,-583.11445122,0.00024657,3]
[343905219,1733020236602,-514.52742279,0.00024657,3]
[343905220,1733020236612,-500.0,0.00024657,3]
[343905221,1733020236622,-500.0,0.00024657,3]
[343905222,1733020236631,-500.0,0.00024657,3]
[343905223,1733020236641,-500.0,0.00024657,3]
[343905224,1733020236651,-500.0,0.00024657,3]
[343905225,1733020236660,-500.0,0.00024657,3]
[343905226,1733020236670,-500.0,0.00024657,3]
[343905227,1733020236679,-505.97131274,0.00024657,3]
[343905228,1733020236689,-500.0,0.00024657,3]
[343905229,1733020236698,-505.57722914,0.00024657,3]
[343905230,1733020236707,-500.0,0.00024657,3]
[343905231,1733020236718,-507.47019635,0.00024657,3]
[343905232,1733020236727,-500.0,0.00024657,3]
[343905233,1733020236736,-560.4028216,0.00024657,3]
[343905234,1733020236746,-500.0,0.00024657,3]
[343905235,1733020236756,-500.0,0.00024657,3]
[343905236,1733020236765,-500.0,0.00024657,3]
[343905237,1733020236774,-500.0,0.00024657,3]
[343905238,1733020236784,-500.0,0.00024657,3]
[343905239,1733020236793,-500.0,0.00024657,3]
[343905240,1733020236803,-500.0,0.00024657,3]
[343905241,1733020236813,-500.0,0.00024657,3]
[343905242,1733020236823,-500.0,0.00024657,3]
[343905243,1733020236833,-501.92241749,0.00024657,3]
[343905244,1733020236842,-500.0,0.00024657,3]
[343905245,1733020236852,-500.0,0.00024657,3]
[343905246,1733020236862,-500.0,0.00024657,3]
[343905247,1733020236872,-500.0,0.00024657,3]
[343905248,1733020236882,-504.65410284,0.00024657,3]
[343905249,1733020236891,-506.16831589,0.00024657,3]
[343905250,1733020236901,-500.0,0.00024657,3]
[343905251,1733020236911,-500.0,0.00024657,3]
[343905252,1733020236921,-396.69529409,0.00024657,3]
[343905253,1733020236931,-500.0,0.00024657,3]
[343905254,1733020236940,-500.0,0.00024657,3]
[343905255,1733020236951,-500.0,0.00024657,3]
[343905256,1733020237051,-500.0,0.00024657,3]
[343905257,1733020237078,-1000.0,0.00024657,2]
[343905258,1733020237088,-286.55918438,0.00024657,3]
[343905259,1733020237098,-500.0,0.00024657,3]
[343905260,1733020237108,-182.18816235,0.00024657,3]
[343905261,1733020237118,-509.86050862,0.00024657,3]
[343905262,1733020237128,-500.0,0.00024657,3]
[343905263,1733020237137,-500.0,0.00024657,3]
[343905264,1733020237146,-500.0,0.00024657,3]
[343905265,1733020237156,-500.0,0.00024657,3]
[343905266,1733020237165,-500.0,0.00024657,3]
[343905267,1733020237175,-500.0,0.00024657,3]
[343905268,1733020237184,-500.0,0.00024657,3]
[343905269,1733020237194,-500.0,0.00024657,3]
[343905270,1733020237203,-500.0,0.00024657,3]
[343905271,1733020237214,-500.0,0.00024657,3]
[343905272,1733020237223,-500.0,0.00024657,3]
[343905273,1733020237232,-500.0,0.00024657,3]
[343905274,1733020237242,-500.0,0.00024657,3]
[343905275,1733020237251,-504.24739827,0.00024657,3]
[343905276,1733020237262,-507.76395526,0.00024657,3]
[343905277,1733020237274,-500.0,0.00024657,3]
[343905278,1733020237283,-500.0,0.00024657,3]
[343905279,1733020237293,-520.39370508,0.00024657,3]
[343905280,1733020237302,-500.0,0.00024657,3]
[343905281,1733020237313,-500.0,0.00024657,3]
[343905282,1733020237323,-500.0,0.00024657,3]
[343905283,1733020237332,-565.07465467,0.00024657,3]
[343905284,1733020237343,-500.0,0.00024657,3]
[343905285,1733020237353,-500.0,0.00024657,3]
[343905286,1733020237363,-506.17644165,0.00024657,3]
[343905287,1733020237373,-500.0,0.00024657,3]
[343905288,1733020237383,-500.0,0.00024657,3]
[343905289,1733020237392,-500.0,0.00024657,3]
[343905290,1733020237402,-500.0,0.00024657,3]
[343905291,1733020237411,-500.0,0.00024657,3]
[343905292,1733020237421,-500.0,0.00024657,3]
[343905293,1733020237431,-500.0,0.00024657,3]
[343905294,1733020237440,-222.0388154,0.00024657,3]
[343905295,1733020237450,-500.0,0.00024657,3]
[343905296,1733020237459,-500.0,0.00024657,2]
[343905297,1733020237470,-570.4,0.00024657,3]
[343905298,1733020237479,-500.0,0.00024657,3]
[343905299,1733020237488,-500.0,0.00024657,3]
[343905300,1733020237498,-442.33043133,0.00024657,3]
[343905301,1733020237507,-202.17547536,0.00024657,3]
[343905302,1733020237516,-517.11628451,0.00024657,3]
[343905303,1733020237526,-500.0,0.00024657,3]
[343905304,1733020237535,-500.0,0.00024657,3]
[343905305,1733020237545,-344.54668487,0.00024657,3]
[343905306,1733020237555,-500.0,0.00024657,3]
[343905307,1733020237564,-500.0,0.00024657,3]
[343905308,1733020237574,-500.0,0.00024657,3]
[343905309,1733020237584,-500.0,0.00024657,3]
[343905310,1733020237594,-506.69381409,0.00024657,3]
[343905311,1733020237604,-500.0,0.00024657,3]
[343905312,1733020237613,-500.0,0.00024657,3]
[343905313,1733020237623,-500.0,0.00024657,3]
[343905314,1733020237632,-500.0,0.00024657,3]
[343905315,1733020237642,-501.86088619,0.00024657,3]
[343905316,1733020237651,-500.0,0.00024657,3]
[343905317,1733020237661,-500.0,0.00024657,3]
[343905318,1733020237670,-502.33881125,0.00024657,3]
[343905319,1733020237680,-500.0,0.00024657,3]
[343905320,1733020237690,-500.0,0.00024657,3]
[343905321,1733020237700,-314.48583825,0.00024657,3]
[343905322,1733020237709,-500.0,0.00024657,3]
[343905323,1733020237721,-500.0,0.00024657,3]
[343905324,1733020237731,-500.0,0.00024657,3]
[343905325,1733020237741,-508.39913809,0.00024657,3]
[343905326,1733020237751,-200.0,0.00024658,2]
[343905327,1733020237761,-158.05166167,0.00024658,2]
[343905328,1733020237770,-2165.97225784,0.000249,2]
[343905329,1733020237780,-531.91428289,0.00024931,3]
[343905330,1733020237790,-501.22450768,0.00024931,3]
[343905331,1733020237800,-500.0,0.00024931,3]
[343905332,1733020237811,-500.0,0.00024931,3]
[343905333,1733020237821,-500.0,0.00024931,3]
[343905334,1733020237830,-232.45285313,0.00024931,3]
[343905335,1733020237840,-505.06409531,0.00024931,3]
[343905336,1733020237850,-500.0,0.00024931,3]
[343905337,1733020237861,-500.0,0.00024931,3]
[343905338,1733020237871,-585.07032606,0.00024931,3]
[343905339,1733020237881,-500.0,0.00024931,3]
[343905340,1733020237891,-500.0,0.00024931,3]
[343905341,1733020237902,-500.0,0.00024931,3]
[343905342,1733020237913,-500.0,0.00024931,3]
[343905343,1733020237923,-500.0,0.00024931,3]
[343905344,1733020237934,-210.19457609,0.00024931,3]
[343905345,1733020237944,-500.0,0.00024931,3]
[343905346,1733020237954,-500.0,0.00024931,3]
[343905347,1733020237967,-607.08337607,0.00024931,3]
[343905348,1733020237976,-413.70633395,0.00024931,3]
[343905349,1733020237985,-500.0,0.00024931,3]
[343905350,1733020237995,-500.0,0.00024931,3]
[343905351,1733020238005,-500.0,0.00024931,3]
[343905352,1733020238015,-500.0,0.00024931,3]
[343905353,1733020238024,-527.38066613,0.00024931,3]
[343905354,1733020238034,-528.60137173,0.00024931,3]
[343905355,1733020238043,-500.0,0.00024931,3]
[343905356,1733020238054,-500.0,0.00024931,3]
[343905357,1733020238067,-500.0,0.00024931,3]
[343905358,1733020238077,-500.0,0.00024931,3]
[343905359,1733020238087,-500.0,0.00024931,3]
[343905361,1733020238097,-500.0,0.00024931,3]
[343905362,1733020238107,-500.0,0.00024931,3]
[343905363,1733020238116,-500.0,0.00024931,3]
[343905364,1733020238126,-500.0,0.00024931,3]
[343905365,1733020238137,-500.0,0.00024931,3]
[343905366,1733020238147,-528.23791307,0.00024931,3]
[343905367,1733020238157,-500.0,0.00024931,3]
[343905368,1733020238167,-500.0,0.00024931,3]
[343905369,1733020238176,-500.0,0.00024931,3]
[343905370,1733020238186,-500.0,0.00024931,3]
[343905371,1733020238196,-500.0,0.00024931,3]
[343905372,1733020238205,-500.0,0.00024931,3]
[343905373,1733020238219,-500.0,0.00024931,3]
[343905374,1733020238228,-500.0,0.00024931,3]
[343905375,1733020238237,-500.0,0.00024931,3]
[343905376,1733020238247,-500.0,0.00024931,3]
[343905377,1733020238261,-500.0,0.00024931,3]
[343905378,1733020238270,-500.0,0.00024931,3]
[343905379,1733020238280,-321.21060274,0.00024931,3]
[343905380,1733020238290,-500.0,0.00024931,3]
[343905381,1733020238301,-500.0,0.00024931,3]
[343905382,1733020238311,-500.0,0.00024931,3]
[343905383,1733020238322,-500.0,0.00024931,3]
[343905384,1733020238331,-500.0,0.00024931,3]
[343905385,1733020238341,-500.0,0.00024931,3]
[343905386,1733020238351,-500.0,0.00024931,2]
[343905387,1733020238361,-570.4,0.00024931,3]
[343905388,1733020238370,-537.6054012,0.00024931,3]
[343905389,1733020238380,-500.0,0.00024931,3]
[343905390,1733020238389,-500.0,0.00024931,3]
[343905391,1733020238399,-500.0,0.00024931,3]
[343905392,1733020238408,-581.30111657,0.00024931,3]
[343905393,1733020238417,-500.0,0.00024931,3]
[343905394,1733020238427,-500.0,0.00024931,3]
[343905395,1733020238437,-500.0,0.00024931,3]
[343905396,1733020238447,-500.0,0.00024931,3]
[343905397,1733020238456,-500.0,0.00024931,3]
[343905398,1733020238469,-500.0,0.00024931,3]
[343905399,1733020238478,-272.69335588,0.00024931,3]
[343905400,1733020238488,-500.0,0.00024931,3]
[343905401,1733020238498,-500.0,0.00024931,3]
[343905402,1733020238506,-500.0,0.00024931,3]
[343905403,1733020238515,-500.0,0.00024931,3]
[343905404,1733020238525,-500.0,0.00024931,3]
[343905405,1733020238535,-500.0,0.00024931,3]
[343905406,1733020238544,-500.0,0.00024931,3]
[343905407,1733020238553,-300.0,0.00025,2]
[343905408,1733020238563,-277.599999,0.00025,2]
[343905410,1733020238572,-6968.780593,0.00025,30]
[343905412,1733020238582,-302.69733596,0.00025,2]
[343905413,1733020238591,-2244.56003404,0.00025,2]
[343905414,1733020238607,-81.78935702,0.00025,2]
[343905415,1733020238617,-5260.79030451,0.00025,2]
[343905436,1733020244133,-151.62744155,0.00022403,2]
[343905437,1733020244143,-5588.63725038,0.00025,2]
[343905438,1733020244153,-1043.32167386,0.00025,2]
[343905439,1733020244163,-8985.48305976,0.00025,2]
[343905440,1733020244172,-5801.12231923,0.00025,2]
[343905441,1733020244181,-9186.91092034,0.00025,2]
[343905448,1733020246694,-1169.27083333,0.00024657,3]
[343905450,1733020246704,-1169.27083333,0.00024657,3]
[343905451,1733020246716,-1169.27083333,0.00024657,3]
[343905453,1733020246725,-61173.83536702,0.00025,2]
[343905455,1733020246735,-183.211,0.00025047,9]
[343905456,1733020246744,-501.25281597,0.00025073,2]
[343905457,1733020246753,-506.67970152,0.00025073,2]
[343905458,1733020246762,-2717.84,0.0002508,10]
[343905459,1733020246772,-20493.00613062,0.0002509,2]
[343905460,1733020246783,-34432.83084736,0.0002509,2]
[343905461,1733020246795,-2369.87150788,0.0002509,2]
[343905462,1733020246804,-500.0,0.00025205,3]
[343905463,1733020246814,-508.90142795,0.00025205,3]
[343905464,1733020246823,-500.0,0.00025205,3]
[343905465,1733020246833,-500.0,0.00025205,3]
[343905466,1733020246843,-500.0,0.00025205,3]
[343905467,1733020246852,-500.0,0.00025205,3]
[343905468,1733020246861,-500.0,0.00025205,3]
[343905469,1733020246870,-500.0,0.00025205,3]
[343905470,1733020246879,-500.0,0.00025205,3]
[343905471,1733020246889,-500.0,0.00025205,3]
[343905472,1733020246898,-500.0,0.00025205,3]
[343905473,1733020246907,-515.22723758,0.00025205,3]
[343905474,1733020246917,-500.0,0.00025205,3]
[343905475,1733020246927,-500.0,0.00025205,3]
[343905476,1733020246936,-500.0,0.00025205,3]
[343905477,1733020246945,-500.0,0.00025205,3]
[343905478,1733020246955,-500.0,0.00025205,3]
[343905479,1733020246966,-500.0,0.00025205,3]
[343905480,1733020246975,-500.0,0.00025205,3]
[343905481,1733020246985,-500.0,0.00025205,3]
[343905482,1733020246994,-500.0,0.00025205,3]
[343905483,1733020247004,-500.0,0.00025205,3]
[343905484,1733020247013,-570.4,0.00025205,3]
[343905485,1733020247023,-500.0,0.00025205,3]
[343905486,1733020247032,-500.0,0.00025205,3]
[343905487,1733020247041,-288.80740004,0.00025205,3]
[343905488,1733020247051,-500.0,0.00025205,3]
[343905489,1733020247060,-500.0,0.00025205,3]
[343905490,1733020247070,-500.0,0.00025205,3]
[343905491,1733020247079,-500.0,0.00025205,3]
[343905492,1733020247088,-500.0,0.00025205,3]
[343905493,1733020247097,-173.133546,0.0002525,2]
[343905494,1733020247106,-500.0,0.000253,2]
[343905495,1733020247115,-202.38093267,0.00025309,2]
[343905496,1733020247125,-500.0,0.00025404,2]
[343905497,1733020247134,-500.0,0.00025479,3]
[343905498,1733020247143,-500.0,0.00025479,3]
[343905499,1733020247154,-500.0,0.00025479,3]
[343905500,1733020247164,-500.0,0.00025479,3]
[343905501,1733020247173,-500.0,0.00025479,3]
[343905502,1733020247182,-500.0,0.00025479,3]
[343905503,1733020247193,-500.0,0.00025479,3]
[343905504,1733020247203,-500.0,0.00025479,3]
[343905505,1733020247212,-373.88100546,0.00025479,3]
[343905506,1733020247222,-500.0,0.00025479,3]
[343905507,1733020247231,-500.0,0.00025479,3]
[343905508,1733020247241,-500.0,0.00025479,3]
[343905509,1733020247254,-570.4,0.00025479,3]
[343905510,1733020247266,-500.0,0.00025479,3]
[343905511,1733020247276,-500.0,0.00025479,3]
[343905512,1733020247285,-500.0,0.00025479,3]
[343905513,1733020247295,-415.33310022,0.00025479,3]
[343905514,1733020388180,3310.52154627,0.00025999,60]
[343905515,1733020470485,162.734842,0.00013973,2]
[343905526,1733021244130,-1169.27083333,0.0002,2]
[343905527,1733021244153,-169.1371827,0.00023674,2]
[343905528,1733021244175,-310.7668184,0.00023794,2]
[343905529,1733021244197,-300.0,0.00024656,2]
[343905530,1733021244218,-448.69363478,0.00024657,2]
[343905531,1733021244241,-500.0,0.00024657,2]
[343905532,1733021244262,-500.91221454,0.00024657,2]
[343905533,1733021244282,-500.0,0.00024657,3]
[343905534,1733021244303,-500.0,0.00024657,3]
[343905535,1733021244330,-500.0,0.00024657,3]
[343905536,1733021244350,-500.0,0.00024657,3]
[343905537,1733021244371,-500.0,0.00024657,3]
[343905538,1733021244392,-500.0,0.00024657,3]
[343905539,1733021244413,-500.0,0.00024657,3]
[343905540,1733021244433,-500.0,0.00024657,3]
[343905541,1733021244453,-500.0,0.00024657,3]
[343905542,1733021244480,-500.0,0.00024657,3]
[343905543,1733021244501,-500.0,0.00024657,3]
[343905544,1733021244522,-500.0,0.00024657,3]
[343905545,1733021244543,-509.13845205,0.00024657,3]
[343905546,1733021244565,-500.0,0.00024657,3]
[343905547,1733021244592,-518.83268352,0.00024657,3]
[343905548,1733021244613,-505.35857486,0.00024657,3]
[343905549,1733021244635,-237.08581522,0.00024657,3]
[343905550,1733021244656,-500.0,0.00024657,3]
[343905551,1733021244677,-500.0,0.00024657,3]
[343905552,1733021244698,-511.56259699,0.00024657,3]
[343905553,1733021244719,-1000.0,0.00024657,2]
[343905554,1733021244739,-500.0,0.00024657,3]
[343905555,1733021244760,-500.0,0.00024657,3]
[343905556,1733021244781,-500.0,0.00024657,3]
[343905557,1733021244801,-501.17272075,0.00024657,3]
[343905558,1733021244824,-518.96405474,0.00024657,3]
[343905559,1733021244847,-500.0,0.00024657,3]
[343905560,1733021244868,-500.0,0.00024657,3]
[343905561,1733021244889,-500.0,0.00024657,3]
[343905562,1733021244911,-500.0,0.00024657,3]
[343905563,1733021244932,-503.17393569,0.00024657,3]
[343905564,1733021244954,-500.0,0.00024657,3]
[343905565,1733021244975,-500.0,0.00024657,3]
[343905566,1733021244996,-500.0,0.00024657,3]
[343905567,1733021245017,-500.0,0.00024657,3]
[343905568,1733021245039,-500.0,0.00024657,3]
[343905569,1733021245060,-500.0,0.00024657,3]
[343905570,1733021245083,-500.0,0.00024657,3]
[343905571,1733021245105,-500.0,0.00024657,3]
[343905572,1733021245127,-500.0,0.00024657,3]
[343905573,1733021245149,-500.0,0.00024657,3]
[343905574,1733021245171,-475.94352366,0.00024657,3]
[343905575,1733021245193,-500.0,0.00024657,3]
[343905576,1733021245215,-500.0,0.00024657,3]
[343905577,1733021245237,-507.07354886,0.00024657,3]
[343905578,1733021245259,-505.88616946,0.00024657,3]
[343905579,1733021245282,-500.0,0.00024657,3]
[343905580,1733021245304,-500.0,0.00024657,3]
[343905581,1733021245328,-500.0,0.00024657,3]
[343905582,1733021245349,-500.0,0.00024657,3]
[343905583,1733021245370,-500.0,0.00024657,3]
[343905584,1733021245390,-500.0,0.00024657,3]
[343905585,1733021245411,-500.0,0.00024657,3]
[343905586,1733021245433,-500.0,0.00024657,3]
[343905587,1733021245455,-500.0,0.00024657,3]
[343905588,1733021245478,-500.0,0.00024657,3]
[343905589,1733021245502,-200.0,0.00024657,3]
[343905590,1733021245523,-504.57992307,0.00024657,3]
[343905591,1733021245545,-288.87293613,0.00024657,3]
[343905592,1733021245566,-510.49734142,0.00024657,3]
[343905593,1733021245593,-607.41806872,0.00024657,3]
[343905594,1733021245617,-506.95723704,0.00024657,3]
[343905595,1733021245646,-500.0,0.00024657,3]
[343905596,1733021245669,-500.0,0.00024657,3]
[343905597,1733021245691,-500.0,0.00024657,3]
[343905598,1733021245712,-500.0,0.00024657,3]
[343905599,1733021245734,-500.0,0.00024657,3]
[343905600,1733021245756,-306.81898959,0.00024657,3]
[343905601,1733021245777,-500.0,0.00024657,2]
[343905602,1733021245799,-500.0,0.00024657,3]
[343905603,1733021245822,-500.0,0.00024657,3]
[343905604,1733021245844,-500.0,0.00024657,3]
[343905605,1733021245866,-500.0,0.00024657,3]
[343905606,1733021245887,-500.0,0.00024657,3]
[343905607,1733021245907,-500.0,0.00024657,3]
[343905608,1733021245931,-500.0,0.00024657,3]
[343905609,1733021246055,-500.0,0.00024657,3]
[343905610,1733021246080,-500.0,0.00024657,3]
[343905611,1733021246103,-500.0,0.00024657,3]
[343905612,1733021246125,-500.0,0.00024657,3]
[343905613,1733021246147,-500.0,0.00024657,3]
[343905614,1733021246169,-500.0,0.00024657,3]
[343905615,1733021246189,-539.88978058,0.00024657,2]
[343905616,1733021246209,-500.0,0.00024657,3]
[343905617,1733021246232,-500.0,0.00024657,3]
[343905618,1733021246253,-504.07,0.00024657,3]
[343905619,1733021246274,-500.0,0.00024657,3]
[343905620,1733021246294,-500.0,0.00024657,3]
[343905621,1733021246314,-500.0,0.00024657,3]
[343905622,1733021246337,-500.0,0.00024657,3]
[343905623,1733021246358,-512.22939423,0.00024657,3]
[343905624,1733021246381,-500.0,0.00024657,3]
[343905625,1733021246402,-500.0,0.00024657,3]
[343905626,1733021246424,-500.0,0.00024657,3]
[343905627,1733021246445,-503.68635376,0.00024657,3]
[343905628,1733021246466,-316.15891873,0.00024657,3]
[343905629,1733021246488,-500.0,0.00024657,3]
[343905630,1733021246509,-500.0,0.00024657,3]
[343905631,1733021246531,-500.0,0.00024657,3]
[343905632,1733021246553,-312.8812365,0.0002493,2]
[343905633,1733021246577,-276.04923547,0.0002493,2]
[343905634,1733021246602,-500.0,0.00024931,3]
[343905635,1733021246623,-500.0,0.00024931,3]
[343905636,1733021246646,-500.0,0.00024931,3]
[343905637,1733021246667,-500.0,0.00024931,3]
[343905638,1733021246689,-500.0,0.00024931,3]
[343905639,1733021246710,-500.0,0.00024931,3]
[343905640,1733021246731,-500.0,0.00024931,3]
[343905641,1733021246754,-500.0,0.00024931,3]
[343905642,1733021246774,-500.0,0.00024931,3]
[343905643,1733021246796,-510.41383853,0.00024931,3]
[343905644,1733021246817,-500.0,0.00024931,3]
[343905645,1733021246840,-536.72635521,0.00024931,3]
[343905646,1733021246862,-500.0,0.00024931,3]
[343905647,1733021246883,-500.0,0.00024931,3]
[343905648,1733021246904,-500.0,0.00024931,3]
[343905649,1733021246925,-500.0,0.00024931,3]
[343905650,1733021246946,-500.0,0.00024931,3]
[343905651,1733021246967,-500.0,0.00024931,3]
[343905652,1733021246987,-500.0,0.00024931,3]
[343905653,1733021247010,-503.73237195,0.00024931,3]
[343905654,1733021247030,-500.0,0.00024931,3]
[343905655,1733021247051,-500.0,0.00024931,3]
[343905656,1733021247078,-500.0,0.00024931,3]
[343905657,1733021247099,-500.0,0.00024931,3]
[343905658,1733021247120,-500.0,0.00024931,3]
[343905659,1733021247142,-508.68212851,0.00024931,3]
[343905660,1733021247164,-504.07,0.00024931,3]
[343905661,1733021247186,-500.0,0.00024931,3]
[343905662,1733021247209,-500.0,0.00024931,3]
[343905663,1733021247229,-329.21314383,0.00024931,3]
[343905664,1733021247251,-500.0,0.00024931,3]
[343905665,1733021247271,-374.61219569,0.00024931,3]
[343905666,1733021247292,-500.0,0.00024931,3]
[343905667,1733021247313,-500.0,0.00024931,3]
[343905668,1733021247335,-5094.74633339,0.00024965,2]
[343905669,1733021247357,-300.0,0.00025,2]
[343905670,1733021247378,-277.599999,0.00025,2]
[343905671,1733021247400,-183.211,0.0002502,8]
[343905672,1733021247420,-567286.62689073,0.00025204,2]
[343905673,1733021248091,-70535.200554,0.00025204,2]
[343905707,1733021432147,-863.109,0.0002,2]
[343905708,1733021432160,-306.16183333,0.0002,2]
[343905709,1733021432170,-300.0,0.00024656,2]
[343905710,1733021432179,-300.0,0.00024656,2]
[343905711,1733021432189,-1169.27083333,0.00024657,3]
[343905712,1733021432199,-1169.27083333,0.00024657,3]
[343905713,1733021432208,-1169.27083333,0.00024657,3]
[343905714,1733021432219,-500.0,0.00024657,3]
[343905715,1733021432228,-519.77224173,0.00024657,3]
[343905716,1733021432238,-500.0,0.00024657,3]
[343905717,1733021432250,-503.65546193,0.00024657,3]
[343905718,1733021432259,-500.0,0.00024657,3]
[343905719,1733021432268,-500.0,0.00024657,3]
[343905720,1733021432278,-500.0,0.00024657,3]
[343905721,1733021432287,-509.69299062,0.00024657,3]
[343905722,1733021432297,-500.0,0.00024657,3]
[343905723,1733021432306,-500.0,0.00024657,3]
[343905724,1733021432316,-500.0,0.00024657,3]
[343905725,1733021432325,-500.0,0.00024657,3]
[343905726,1733021432335,-500.0,0.00024657,3]
[343905727,1733021432345,-500.0,0.00024657,3]
[343905728,1733021432354,-500.0,0.00024657,3]
[343905729,1733021432364,-500.0,0.00024657,3]
[343905730,1733021432374,-500.0,0.00024657,3]
[343905731,1733021432384,-500.0,0.00024657,3]
[343905732,1733021432394,-500.0,0.00024931,3]
[343905733,1733021432403,-500.0,0.00024931,3]
[343905734,1733021432415,-500.0,0.00024931,3]
[343905735,1733021432425,-500.0,0.00024931,3]
[343905736,1733021432434,-500.0,0.00024931,3]
[343905737,1733021432443,-500.0,0.00024931,3]